[Event "Titled Tuesday Blitz May 16 Early 2023"]
[White "Durarbayli, Vasif"]
[Black "Martinez Alcantara, Jose Eduardo"]
[WhiteFideId "13402935"]
[BlackFideId "3805662"]
[WhiteElo "2551"]
[BlackElo "2711"]
[Result "0-1"]
[Round "10"]
[TimeControl "180+2"]
[Date "2023.05.16"]
[WhiteClock "0:00:00"]
[BlackClock "0:00:06"]

1. e4 {[%clk 0:03:00]}  c5 {[%clk 0:02:58]} 2. Nf3 {[%clk 0:03:00]}  d6 {[%clk 0:02:58]} 3. d4 {[%clk 0:03:01]}  cxd4 {[%clk 0:02:59]} 4. Nxd4 {[%clk 0:03:01]}  a6 {[%clk 0:03:00]} 5. c4 {[%clk 0:03:00]}  e6 {[%clk 0:03:00]} 6. Nc3 {[%clk 0:03:00]}  Nf6 {[%clk 0:03:01]} 7. Be3 {[%clk 0:02:53]}  b6 {[%clk 0:02:59]} 8. f3 {[%clk 0:02:52]}  h5 {[%clk 0:02:59]} 9. Qd2 {[%clk 0:02:52]}  Bb7 {[%clk 0:02:59]} 10. O-O-O {[%clk 0:02:52]}  Nbd7 {[%clk 0:02:59]} 11. Kb1 {[%clk 0:02:52]}  Rc8 {[%clk 0:03:00]} 12. Rc1 {[%clk 0:02:46]}  Be7 {[%clk 0:02:58]} 13. Be2 {[%clk 0:02:44]}  Ne5 {[%clk 0:02:56]} 14. Na4 {[%clk 0:02:43]}  Nfd7 {[%clk 0:02:54]} 15. h3 {[%clk 0:02:32]}  h4 {[%clk 0:02:53]} 16. Ka1 {[%clk 0:02:27]}  O-O {[%clk 0:02:40]} 17. Rhd1 {[%clk 0:02:16]}  Nc6 {[%clk 0:02:34]} 18. Nc3 {[%clk 0:01:54]}  Nce5 {[%clk 0:02:33]} 19. Nb1 {[%clk 0:01:36]}  Nf6 {[%clk 0:02:24]} 20. Nb3 {[%clk 0:01:23]}  Nfd7 {[%clk 0:02:07]} 21. f4 {[%clk 0:01:17]}  Nc6 {[%clk 0:02:06]} 22. Bf3 {[%clk 0:01:17]}  Nc5 {[%clk 0:02:04]} 23. Nd4 {[%clk 0:00:37]}  Nxd4 {[%clk 0:00:58]} 24. Qxd4 {[%clk 0:00:36]}  Qc7 {[%clk 0:00:57]} 25. Nc3 {[%clk 0:00:32]}  Rfd8 {[%clk 0:00:58]} 26. Qd2 {[%clk 0:00:29]}  Bf6 {[%clk 0:00:57]} 27. Bd4 {[%clk 0:00:28]}  e5 {[%clk 0:00:52]} 28. Bxc5 {[%clk 0:00:28]}  dxc5 {[%clk 0:00:53]} 29. Nd5 {[%clk 0:00:25]}  Bxd5 {[%clk 0:00:53]} 30. exd5 {[%clk 0:00:24]}  exf4 {[%clk 0:00:53]} 31. d6 {[%clk 0:00:24]}  Qa7 {[%clk 0:00:48]} 32. Qxf4 {[%clk 0:00:22]}  Qb8 {[%clk 0:00:42]} 33. Rd5 {[%clk 0:00:19]}  b5 {[%clk 0:00:43]} 34. Qd2 {[%clk 0:00:08]}  Rc6 {[%clk 0:00:43]} 35. d7 {[%clk 0:00:08]}  Rb6 {[%clk 0:00:37]} 36. cxb5 {[%clk 0:00:07]}  Rxb5 {[%clk 0:00:37]} 37. Rc2 {[%clk 0:00:08]}  c4 {[%clk 0:00:34]} 38. Rxb5 {[%clk 0:00:04]}  axb5 {[%clk 0:00:35]} 39. Qd5 {[%clk 0:00:04]}  Qb6 {[%clk 0:00:33]} 40. Rd2 {[%clk 0:00:03]}  c3 {[%clk 0:00:32]} 41. Rd1 {[%clk 0:00:03]}  Qf2 {[%clk 0:00:17]} 42. Qb3 {[%clk 0:00:03]}  cxb2+ {[%clk 0:00:13]} 43. Kb1 {[%clk 0:00:04]}  Qc5 {[%clk 0:00:13]} 44. Qc2 {[%clk 0:00:04]}  Qe5 {[%clk 0:00:12]} 45. Qb3 {[%clk 0:00:04]}  g6 {[%clk 0:00:12]} 46. Qc2 {[%clk 0:00:05]}  Kg7 {[%clk 0:00:12]} 47. Rd5 {[%clk 0:00:05]}  Qe1+ {[%clk 0:00:12]} 48. Rd1 {[%clk 0:00:06]}  Qe6 {[%clk 0:00:12]} 49. Bg4 {[%clk 0:00:05]}  Qa6 {[%clk 0:00:12]} 50. Qb3 {[%clk 0:00:06]}  Qb7 {[%clk 0:00:11]} 51. Qd5 {[%clk 0:00:05]}  Qa7 {[%clk 0:00:10]} 52. Rf1 {[%clk 0:00:04]}  Qb6 {[%clk 0:00:10]} 53. Bd1 {[%clk 0:00:04]}  Qe6 {[%clk 0:00:08]} 54. Qxe6 {[%clk 0:00:04]}  fxe6 {[%clk 0:00:09]} 55. Bg4 {[%clk 0:00:04]}  Rxd7 {[%clk 0:00:09]} 56. Bxe6 {[%clk 0:00:05]}  Rd2 {[%clk 0:00:10]} 57. Rg1 {[%clk 0:00:02]}  Bd4 {[%clk 0:00:10]} 58. Re1 {[%clk 0:00:01]}  Rxg2 {[%clk 0:00:10]} 59. Bg4 {[%clk 0:00:02]}  Bc3 {[%clk 0:00:09]} 60. Rd1 {[%clk 0:00:02]}  b4 {[%clk 0:00:09]} 61. Be6 {[%clk 0:00:02]}  Kf6 {[%clk 0:00:09]} 62. Bc8 {[%clk 0:00:03]}  Kg5 {[%clk 0:00:09]} 63. Bd7 {[%clk 0:00:03]}  Kh6 {[%clk 0:00:08]} 64. Bc8 {[%clk 0:00:04]}  Re2 {[%clk 0:00:09]} 65. Bd7 {[%clk 0:00:04]}  Re7 {[%clk 0:00:09]} 66. Bc8 {[%clk 0:00:05]}  Rc7 {[%clk 0:00:09]} 67. Bg4 {[%clk 0:00:05]}  Bf6 {[%clk 0:00:10]} 68. Be6 {[%clk 0:00:06]}  Rc6 {[%clk 0:00:09]} 69. Bg4 {[%clk 0:00:06]}  Ra6 {[%clk 0:00:09]} 70. Be2 {[%clk 0:00:04]}  Ra3 {[%clk 0:00:09]} 71. Bg4 {[%clk 0:00:04]}  Kg5 {[%clk 0:00:09]} 72. Be6 {[%clk 0:00:04]}  Rg3 {[%clk 0:00:07]} 73. Re1 {[%clk 0:00:04]}  Bc3 {[%clk 0:00:07]} 74. Rf1 {[%clk 0:00:04]}  Re3 {[%clk 0:00:05]} 75. Bc8 {[%clk 0:00:04]}  Re4 {[%clk 0:00:05]} 76. Bd7 {[%clk 0:00:04]}  Rd4 {[%clk 0:00:05]} 77. Be6 {[%clk 0:00:04]}  Kh6 {[%clk 0:00:05]} 78. Bc8 {[%clk 0:00:04]}  g5 {[%clk 0:00:06]} 79. Be6 {[%clk 0:00:04]}  Kg7 {[%clk 0:00:07]} 80. Bc8 {[%clk 0:00:04]}  Rf4 {[%clk 0:00:06]} 81. Rd1 {[%clk 0:00:04]}  Kf6 {[%clk 0:00:07]} 82. Bd7 {[%clk 0:00:04]}  Ke5 {[%clk 0:00:07]} 83. Bc8 {[%clk 0:00:04]}  Rf8 {[%clk 0:00:06]} 84. Bg4 {[%clk 0:00:05]}  Ra8 {[%clk 0:00:05]} 85. Bf3 {[%clk 0:00:04]}  Ra3 {[%clk 0:00:05]} 86. Bd5 {[%clk 0:00:04]}  Bd4 {[%clk 0:00:05]} 87. Bb3 {[%clk 0:00:03]}  Ra7 {[%clk 0:00:04]} 88. Re1+ {[%clk 0:00:02]}  Kd6 {[%clk 0:00:04]} 89. Re6+ {[%clk 0:00:02]}  Kc5 {[%clk 0:00:05]} 90. Re2 {[%clk 0:00:02]}  Rg7 {[%clk 0:00:04]} 91. Be6 {[%clk 0:00:02]}  Re7 {[%clk 0:00:04]} 92. Bg4 {[%clk 0:00:02]}  Rf7 {[%clk 0:00:03]} 93. Re1 {[%clk 0:00:03]}  Bc3 {[%clk 0:00:04]} 94. Rd1 {[%clk 0:00:03]}  Rf4 {[%clk 0:00:04]} 95. Be6 {[%clk 0:00:03]}  Re4 {[%clk 0:00:04]} 96. Bf5 {[%clk 0:00:03]}  Rf4 {[%clk 0:00:04]} 97. Be6 {[%clk 0:00:04]}  Rf3 {[%clk 0:00:03]} 98. Bg4 {[%clk 0:00:03]}  Rg3 {[%clk 0:00:03]} 99. Be6 {[%clk 0:00:02]}  b3 {[%clk 0:00:04]} 100. axb3 {[%clk 0:00:02]}  Kb4 {[%clk 0:00:05]} 101. Rf1 {[%clk 0:00:02]}  Be5 {[%clk 0:00:04]} 102. Re1 {[%clk 0:00:01]}  Bd4 {[%clk 0:00:04]} 103. Rd1 {[%clk 0:00:02]}  Bc3 {[%clk 0:00:04]} 104. Rf1 {[%clk 0:00:01]}  Re3 {[%clk 0:00:05]} 105. Bg4 {[%clk 0:00:01]}  Re4 {[%clk 0:00:06]} 106. Bf5 {[%clk 0:00:02]}  Rd4 {[%clk 0:00:06]} 107. Bg4 {[%clk 0:00:02]}  Re4 {[%clk 0:00:06]} 108. Bf5 {[%clk 0:00:03]}  Rf4 {[%clk 0:00:07]} 109. Bd3 {[%clk 0:00:03]}  Bd4 {[%clk 0:00:06]} 110. Rd1 {[%clk 0:00:03]}  Bg7 {[%clk 0:00:05]} 111. Be2 {[%clk 0:00:03]}  Rf7 {[%clk 0:00:05]} 112. Bg4 {[%clk 0:00:03]}  Ra7 {[%clk 0:00:06]} 113. Kc2 {[%clk 0:00:04]}  Rc7+ {[%clk 0:00:06]} 114. Kb1 {[%clk 0:00:04]}  Be5 {[%clk 0:00:06]} 115. Be6 {[%clk 0:00:04]}  Ka3 {[%clk 0:00:06]} 116. Bg4 {[%clk 0:00:00]}  Bf4 {[%clk 0:00:06]} 0-1


[Site "https://www.chess.com"]

[Event "Titled Tuesday Blitz May 16 Early 2023"]
[White "Pichot, Alan"]
[Black "Demchenko, Anton"]
[WhiteFideId "110973"]
[BlackFideId "4160258"]
[WhiteElo "2573"]
[BlackElo "2545"]
[Result "1-0"]
[Round "10"]
[TimeControl "180+2"]
[Date "2023.05.16"]
[WhiteClock "0:00:13"]
[BlackClock "0:00:03"]

1. e4 {[%clk 0:02:59]}  e5 {[%clk 0:03:00]} 2. Nf3 {[%clk 0:02:59]}  Nc6 {[%clk 0:03:00]} 3. Bb5 {[%clk 0:02:59]}  a6 {[%clk 0:03:01]} 4. Ba4 {[%clk 0:03:00]}  Nge7 {[%clk 0:03:01]} 5. O-O {[%clk 0:02:50]}  Ng6 {[%clk 0:03:01]} 6. d4 {[%clk 0:02:50]}  exd4 {[%clk 0:02:57]} 7. Nxd4 {[%clk 0:02:50]}  Nxd4 {[%clk 0:02:57]} 8. Qxd4 {[%clk 0:02:49]}  b5 {[%clk 0:02:58]} 9. Bb3 {[%clk 0:02:50]}  Bb7 {[%clk 0:02:59]} 10. Rd1 {[%clk 0:02:35]}  Qe7 {[%clk 0:02:46]} 11. c4 {[%clk 0:02:02]}  c5 {[%clk 0:02:35]} 12. Qe3 {[%clk 0:02:01]}  b4 {[%clk 0:02:35]} 13. a3 {[%clk 0:01:49]}  O-O-O {[%clk 0:02:35]} 14. axb4 {[%clk 0:01:48]}  cxb4 {[%clk 0:02:36]} 15. f3 {[%clk 0:01:35]}  Qe5 {[%clk 0:02:31]} 16. Qf2 {[%clk 0:01:27]}  Bc5 {[%clk 0:02:08]} 17. Be3 {[%clk 0:01:25]}  Bxe3 {[%clk 0:02:09]} 18. Qxe3 {[%clk 0:01:26]}  f5 {[%clk 0:01:59]} 19. Rd5 {[%clk 0:01:11]}  Bxd5 {[%clk 0:00:59]} 20. cxd5 {[%clk 0:01:11]}  Kb7 {[%clk 0:00:47]} 21. Nd2 {[%clk 0:01:03]}  Nf4 {[%clk 0:00:30]} 22. Nc4 {[%clk 0:00:59]}  Qd4 {[%clk 0:00:30]} 23. Qxd4 {[%clk 0:00:47]}  Ne2+ {[%clk 0:00:29]} 24. Kf2 {[%clk 0:00:48]}  Nxd4 {[%clk 0:00:30]} 25. Ba4 {[%clk 0:00:49]}  fxe4 {[%clk 0:00:26]} 26. fxe4 {[%clk 0:00:50]}  Nb5 {[%clk 0:00:13]} 27. Ke3 {[%clk 0:00:48]}  Rhf8 {[%clk 0:00:11]} 28. Ne5 {[%clk 0:00:41]}  Rfe8 {[%clk 0:00:10]} 29. Nf7 {[%clk 0:00:39]}  Ra8 {[%clk 0:00:08]} 30. Bxb5 {[%clk 0:00:37]}  axb5 {[%clk 0:00:09]} 31. Nd6+ {[%clk 0:00:38]}  Kb6 {[%clk 0:00:09]} 32. Rc1 {[%clk 0:00:26]}  Rf8 {[%clk 0:00:10]} 33. e5 {[%clk 0:00:23]}  Ra2 {[%clk 0:00:10]} 34. Rc2 {[%clk 0:00:24]}  b3 {[%clk 0:00:10]} 35. Rd2 {[%clk 0:00:24]}  Kc5 {[%clk 0:00:08]} 36. Ne4+ {[%clk 0:00:25]}  Kb6 {[%clk 0:00:07]} 37. Ng5 {[%clk 0:00:11]}  Rf1 {[%clk 0:00:07]} 38. Nf3 {[%clk 0:00:10]}  Rb1 {[%clk 0:00:07]} 39. e6 {[%clk 0:00:10]}  dxe6 {[%clk 0:00:07]} 40. dxe6 {[%clk 0:00:11]}  Rbxb2 {[%clk 0:00:06]} 41. Rxb2 {[%clk 0:00:11]}  Rxb2 {[%clk 0:00:06]} 42. e7 {[%clk 0:00:12]}  Ra2 {[%clk 0:00:02]} 43. e8=Q {[%clk 0:00:12]}  b2 {[%clk 0:00:02]} 44. Qe6+ {[%clk 0:00:12]}  Ka5 {[%clk 0:00:03]} 45. Qxa2+ {[%clk 0:00:13]}  Kb4 {[%clk 0:00:03]} 46. Qxb2+ {[%clk 0:00:13]} 1-0


[Site "https://www.chess.com"]

[Event "Titled Tuesday Blitz May 16 Early 2023"]
[White "Zhigalko, Sergei"]
[Black "Gunina, Valentina"]
[WhiteFideId "13502956"]
[BlackFideId "4167570"]
[WhiteElo "2626"]
[BlackElo "2352"]
[Result "1-0"]
[Round "10"]
[TimeControl "180+2"]
[Date "2023.05.16"]
[WhiteClock "0:00:02"]
[BlackClock "0:00:00"]

1. e4 {[%clk 0:03:00]}  c6 {[%clk 0:03:00]} 2. d4 {[%clk 0:03:00]}  d5 {[%clk 0:03:00]} 3. e5 {[%clk 0:03:01]}  c5 {[%clk 0:03:00]} 4. Nf3 {[%clk 0:03:01]}  cxd4 {[%clk 0:02:51]} 5. Qxd4 {[%clk 0:03:02]}  Nc6 {[%clk 0:02:51]} 6. Qf4 {[%clk 0:03:02]}  e6 {[%clk 0:02:47]} 7. Bd3 {[%clk 0:03:01]}  Nb4 {[%clk 0:02:36]} 8. O-O {[%clk 0:03:01]}  Nxd3 {[%clk 0:02:35]} 9. cxd3 {[%clk 0:03:02]}  Ne7 {[%clk 0:02:32]} 10. Nc3 {[%clk 0:03:02]}  Ng6 {[%clk 0:02:24]} 11. Qg3 {[%clk 0:03:02]}  Be7 {[%clk 0:02:19]} 12. Re1 {[%clk 0:03:00]}  O-O {[%clk 0:02:19]} 13. Ne2 {[%clk 0:02:50]}  Bd7 {[%clk 0:02:18]} 14. Ned4 {[%clk 0:02:50]}  Rc8 {[%clk 0:02:17]} 15. Bd2 {[%clk 0:02:50]}  Qb6 {[%clk 0:02:14]} 16. Bc3 {[%clk 0:02:49]}  Bb4 {[%clk 0:02:11]} 17. Bxb4 {[%clk 0:02:39]}  Qxb4 {[%clk 0:02:11]} 18. Rab1 {[%clk 0:02:39]}  Qb6 {[%clk 0:02:02]} 19. h4 {[%clk 0:02:24]}  h6 {[%clk 0:02:01]} 20. Re3 {[%clk 0:02:16]}  Rc7 {[%clk 0:01:54]} 21. h5 {[%clk 0:02:11]}  Ne7 {[%clk 0:01:54]} 22. Qh4 {[%clk 0:02:12]}  Nc6 {[%clk 0:01:06]} 23. Ne2 {[%clk 0:02:00]}  Qb4 {[%clk 0:00:56]} 24. Nfd4 {[%clk 0:01:31]}  Nxd4 {[%clk 0:00:53]} 25. Nxd4 {[%clk 0:01:31]}  Rfc8 {[%clk 0:00:53]} 26. a3 {[%clk 0:00:51]}  Rc1+ {[%clk 0:00:44]} 27. Kh2 {[%clk 0:00:51]}  Qd2 {[%clk 0:00:33]} 28. Rxc1 {[%clk 0:00:29]}  Qxc1 {[%clk 0:00:32]} 29. Rg3 {[%clk 0:00:25]}  Kf8 {[%clk 0:00:29]} 30. Qg4 {[%clk 0:00:03]}  Ke7 {[%clk 0:00:27]} 31. Qxg7 {[%clk 0:00:02]}  Qf4 {[%clk 0:00:26]} 32. Nf3 {[%clk 0:00:02]}  Rc2 {[%clk 0:00:20]} 33. Qh8 {[%clk 0:00:02]}  Rxf2 {[%clk 0:00:16]} 34. Qb8 {[%clk 0:00:02]}  Rxf3 {[%clk 0:00:14]} 35. gxf3 {[%clk 0:00:01]}  Qd2+ {[%clk 0:00:00]} 36. Kh3 {[%clk 0:00:02]} 1-0


[Site "https://www.chess.com"]

[Event "Titled Tuesday Blitz May 16 Early 2023"]
[White "JeRoma71"]
[Black "Yeletsky, Ivan"]
[BlackFideId "24180327"]
[WhiteElo "2862"]
[BlackElo "2380"]
[Result "0-1"]
[Round "10"]
[TimeControl "180+2"]
[Date "2023.05.16"]
[WhiteClock "0:00:00"]
[BlackClock "0:00:12"]

1. Nf3 {[%clk 0:02:58]}  g6 {[%clk 0:02:55]} 2. e4 {[%clk 0:02:58]}  c5 {[%clk 0:02:55]} 3. Nc3 {[%clk 0:02:53]}  Bg7 {[%clk 0:02:55]} 4. d3 {[%clk 0:02:54]}  Nc6 {[%clk 0:02:54]} 5. Be3 {[%clk 0:02:54]}  d6 {[%clk 0:02:54]} 6. Qd2 {[%clk 0:02:54]}  Nf6 {[%clk 0:02:49]} 7. Bh6 {[%clk 0:02:54]}  O-O {[%clk 0:02:49]} 8. h4 {[%clk 0:02:54]}  Bg4 {[%clk 0:02:42]} 9. Be2 {[%clk 0:02:52]}  Qa5 {[%clk 0:02:37]} 10. Bxg7 {[%clk 0:02:42]}  Kxg7 {[%clk 0:02:38]} 11. h5 {[%clk 0:02:42]}  Bxh5 {[%clk 0:02:29]} 12. O-O-O {[%clk 0:02:37]}  Nd4 {[%clk 0:02:18]} 13. Ng1 {[%clk 0:02:16]}  b5 {[%clk 0:02:03]} 14. Bxh5 {[%clk 0:02:10]}  b4 {[%clk 0:01:48]} 15. Bxg6 {[%clk 0:01:58]}  fxg6 {[%clk 0:01:48]} 16. Qh6+ {[%clk 0:01:37]}  Kf7 {[%clk 0:01:48]} 17. Nd5 {[%clk 0:01:24]}  Qxa2 {[%clk 0:01:35]} 18. Nxf6 {[%clk 0:01:22]}  Kxf6 {[%clk 0:01:26]} 19. Qh4+ {[%clk 0:01:07]}  Kf7 {[%clk 0:01:17]} 20. Qxh7+ {[%clk 0:01:07]}  Ke8 {[%clk 0:01:15]} 21. Qxg6+ {[%clk 0:01:04]}  Kd7 {[%clk 0:01:15]} 22. Nf3 {[%clk 0:01:00]}  Qa1+ {[%clk 0:00:41]} 23. Kd2 {[%clk 0:01:00]}  Qxb2 {[%clk 0:00:41]} 24. Nxd4 {[%clk 0:00:48]}  cxd4 {[%clk 0:00:38]} 25. Qg4+ {[%clk 0:00:44]}  Kd8 {[%clk 0:00:38]} 26. Ke2 {[%clk 0:00:09]}  Qxc2+ {[%clk 0:00:33]} 27. Rd2 {[%clk 0:00:09]}  Rxf2+ {[%clk 0:00:33]} 28. Kxf2 {[%clk 0:00:10]}  Qxd2+ {[%clk 0:00:34]} 29. Kg3 {[%clk 0:00:08]}  Kc7 {[%clk 0:00:30]} 30. Rh7 {[%clk 0:00:06]}  Re8 {[%clk 0:00:21]} 31. Kh2 {[%clk 0:00:06]}  Kb6 {[%clk 0:00:15]} 32. Qd7 {[%clk 0:00:03]}  Qf4+ {[%clk 0:00:14]} 33. g3 {[%clk 0:00:03]}  Qf2+ {[%clk 0:00:14]} 34. Kh3 {[%clk 0:00:03]}  Qf1+ {[%clk 0:00:14]} 35. Kh2 {[%clk 0:00:00]}  Rf8 {[%clk 0:00:12]} 0-1


[Site "https://www.chess.com"]

[Event "Titled Tuesday Blitz May 16 Early 2023"]
[White "Averjanov, Alexey"]
[Black "Nguyen, Ngoc Truong Son"]
[WhiteFideId "14109867"]
[BlackFideId "12401110"]
[WhiteElo "2810"]
[BlackElo "2556"]
[Result "1-0"]
[Round "10"]
[TimeControl "180+2"]
[Date "2023.05.16"]
[WhiteClock "0:00:06"]
[BlackClock "0:00:00"]

1. d4 {[%clk 0:02:59]}  Nf6 {[%clk 0:02:39]} 2. c4 {[%clk 0:02:59]}  d6 {[%clk 0:02:38]} 3. Nf3 {[%clk 0:02:59]}  Nbd7 {[%clk 0:02:38]} 4. Nc3 {[%clk 0:02:59]}  e5 {[%clk 0:02:38]} 5. e4 {[%clk 0:02:59]}  g6 {[%clk 0:02:38]} 6. Be2 {[%clk 0:02:58]}  Bg7 {[%clk 0:02:38]} 7. O-O {[%clk 0:02:57]}  O-O {[%clk 0:02:39]} 8. Qc2 {[%clk 0:02:55]}  c6 {[%clk 0:02:38]} 9. Rd1 {[%clk 0:02:45]}  Qe7 {[%clk 0:02:36]} 10. d5 {[%clk 0:02:45]}  Ne8 {[%clk 0:02:34]} 11. b4 {[%clk 0:02:36]}  a5 {[%clk 0:02:31]} 12. dxc6 {[%clk 0:02:33]}  bxc6 {[%clk 0:02:31]} 13. b5 {[%clk 0:02:33]}  Bb7 {[%clk 0:02:30]} 14. bxc6 {[%clk 0:02:25]}  Bxc6 {[%clk 0:02:31]} 15. Nd5 {[%clk 0:02:21]}  Bxd5 {[%clk 0:02:25]} 16. cxd5 {[%clk 0:02:22]}  Nc5 {[%clk 0:02:24]} 17. Be3 {[%clk 0:02:11]}  Rc8 {[%clk 0:02:24]} 18. Nd2 {[%clk 0:01:41]}  f5 {[%clk 0:02:23]} 19. f3 {[%clk 0:01:35]}  Nf6 {[%clk 0:02:21]} 20. Rac1 {[%clk 0:01:22]}  fxe4 {[%clk 0:01:51]} 21. Nxe4 {[%clk 0:01:16]}  Nfxe4 {[%clk 0:01:45]} 22. fxe4 {[%clk 0:01:13]}  Qh4 {[%clk 0:01:38]} 23. Bxc5 {[%clk 0:00:49]}  Rxc5 {[%clk 0:01:39]} 24. Qd3 {[%clk 0:00:45]}  Qf2+ {[%clk 0:00:25]} 25. Kh1 {[%clk 0:00:45]}  Rfc8 {[%clk 0:00:23]} 26. Rxc5 {[%clk 0:00:43]}  Qxc5 {[%clk 0:00:22]} 27. Rf1 {[%clk 0:00:41]}  h5 {[%clk 0:00:20]} 28. Qf3 {[%clk 0:00:33]}  Rf8 {[%clk 0:00:19]} 29. Qd3 {[%clk 0:00:32]}  Rf4 {[%clk 0:00:18]} 30. g3 {[%clk 0:00:30]}  Rxf1+ {[%clk 0:00:17]} 31. Bxf1 {[%clk 0:00:31]}  Bh6 {[%clk 0:00:15]} 32. Kg2 {[%clk 0:00:27]}  a4 {[%clk 0:00:14]} 33. Be2 {[%clk 0:00:23]}  a3 {[%clk 0:00:14]} 34. Qb5 {[%clk 0:00:16]}  Qc2 {[%clk 0:00:11]} 35. Qc4 {[%clk 0:00:15]}  Qd2 {[%clk 0:00:10]} 36. Kf1 {[%clk 0:00:13]}  Kh7 {[%clk 0:00:06]} 37. h4 {[%clk 0:00:12]}  Bg7 {[%clk 0:00:06]} 38. Kf2 {[%clk 0:00:11]}  Qb2 {[%clk 0:00:06]} 39. Kf1 {[%clk 0:00:11]}  Qb6 {[%clk 0:00:06]} 40. g4 {[%clk 0:00:10]}  hxg4 {[%clk 0:00:04]} 41. Bxg4 {[%clk 0:00:10]}  Qe3 {[%clk 0:00:04]} 42. Qe2 {[%clk 0:00:08]}  Qf4+ {[%clk 0:00:04]} 43. Qf3 {[%clk 0:00:08]}  Qc1+ {[%clk 0:00:03]} 44. Qd1 {[%clk 0:00:07]}  Qb2 {[%clk 0:00:03]} 45. Qe2 {[%clk 0:00:07]}  Bf6 {[%clk 0:00:03]} 46. h5 {[%clk 0:00:07]}  g5 {[%clk 0:00:00]} 47. Qf3 {[%clk 0:00:06]} 1-0


[Site "https://www.chess.com"]

[Event "Titled Tuesday Blitz May 16 Early 2023"]
[White "Ivic, Velimir"]
[Black "Wagner, Dennis"]
[WhiteFideId "950122"]
[BlackFideId "24650684"]
[WhiteElo "2563"]
[BlackElo "2478"]
[Result "1-0"]
[Round "10"]
[TimeControl "180+2"]
[Date "2023.05.16"]
[WhiteClock "0:00:07"]
[BlackClock "0:00:04"]

1. e4 {[%clk 0:02:58]}  e5 {[%clk 0:02:59]} 2. Nf3 {[%clk 0:02:57]}  Nc6 {[%clk 0:03:00]} 3. Bb5 {[%clk 0:02:55]}  a6 {[%clk 0:02:59]} 4. Ba4 {[%clk 0:02:56]}  Nf6 {[%clk 0:03:00]} 5. O-O {[%clk 0:02:56]}  Be7 {[%clk 0:03:01]} 6. Re1 {[%clk 0:02:55]}  b5 {[%clk 0:03:00]} 7. Bb3 {[%clk 0:02:56]}  O-O {[%clk 0:03:01]} 8. a4 {[%clk 0:02:56]}  b4 {[%clk 0:03:01]} 9. d4 {[%clk 0:02:55]}  d6 {[%clk 0:03:02]} 10. dxe5 {[%clk 0:02:53]}  dxe5 {[%clk 0:03:02]} 11. Bg5 {[%clk 0:02:43]}  Qxd1 {[%clk 0:02:51]} 12. Rxd1 {[%clk 0:02:44]}  Bd6 {[%clk 0:02:50]} 13. Nbd2 {[%clk 0:02:31]}  Na5 {[%clk 0:02:27]} 14. Bxf6 {[%clk 0:02:24]}  Nxb3 {[%clk 0:02:08]} 15. cxb3 {[%clk 0:02:25]}  gxf6 {[%clk 0:02:07]} 16. Nc4 {[%clk 0:02:25]}  Rd8 {[%clk 0:01:59]} 17. Nh4 {[%clk 0:01:16]}  Be6 {[%clk 0:01:58]} 18. Nf5 {[%clk 0:01:13]}  Bc5 {[%clk 0:01:57]} 19. Kf1 {[%clk 0:01:07]}  h5 {[%clk 0:01:46]} 20. Ke2 {[%clk 0:00:59]}  Bxf5 {[%clk 0:01:34]} 21. exf5 {[%clk 0:00:59]}  Bd4 {[%clk 0:01:35]} 22. Rd3 {[%clk 0:00:38]}  Kg7 {[%clk 0:01:28]} 23. Rad1 {[%clk 0:00:34]}  Kh6 {[%clk 0:01:21]} 24. h4 {[%clk 0:00:33]}  c5 {[%clk 0:01:18]} 25. Kf3 {[%clk 0:00:23]}  Kg7 {[%clk 0:01:04]} 26. Ke4 {[%clk 0:00:21]}  Kf8 {[%clk 0:01:04]} 27. g4 {[%clk 0:00:19]}  hxg4 {[%clk 0:01:04]} 28. Rg1 {[%clk 0:00:16]}  Ke7 {[%clk 0:01:03]} 29. Rxg4 {[%clk 0:00:16]}  Bxf2 {[%clk 0:00:58]} 30. h5 {[%clk 0:00:13]}  Rd4+ {[%clk 0:00:52]} 31. Rxd4 {[%clk 0:00:13]}  cxd4 {[%clk 0:00:53]} 32. Rg2 {[%clk 0:00:12]}  Bh4 {[%clk 0:00:51]} 33. Rh2 {[%clk 0:00:11]}  Bg5 {[%clk 0:00:52]} 34. h6 {[%clk 0:00:12]}  Rh8 {[%clk 0:00:52]} 35. h7 {[%clk 0:00:12]}  Kf8 {[%clk 0:00:52]} 36. a5 {[%clk 0:00:05]}  Kg7 {[%clk 0:00:52]} 37. Nd6 {[%clk 0:00:05]}  Bf4 {[%clk 0:00:43]} 38. Rh1 {[%clk 0:00:05]}  Rxh7 {[%clk 0:00:24]} 39. Ne8+ {[%clk 0:00:05]}  Kh8 {[%clk 0:00:23]} 40. Rxh7+ {[%clk 0:00:06]}  Kxh7 {[%clk 0:00:24]} 41. Nxf6+ {[%clk 0:00:04]}  Kh6 {[%clk 0:00:23]} 42. Nd5 {[%clk 0:00:05]}  Kg5 {[%clk 0:00:19]} 43. Nxb4 {[%clk 0:00:06]}  Bd2 {[%clk 0:00:15]} 44. Nc6 {[%clk 0:00:06]}  f6 {[%clk 0:00:11]} 45. b4 {[%clk 0:00:07]}  Be1 {[%clk 0:00:08]} 46. b5 {[%clk 0:00:07]}  axb5 {[%clk 0:00:08]} 47. a6 {[%clk 0:00:07]}  d3 {[%clk 0:00:09]} 48. Kxd3 {[%clk 0:00:07]}  Bf2 {[%clk 0:00:09]} 49. Ke4 {[%clk 0:00:07]}  b4 {[%clk 0:00:04]} 50. Nxb4 {[%clk 0:00:07]} 1-0


[Site "https://www.chess.com"]

[Event "Titled Tuesday Blitz May 16 Early 2023"]
[White "Postny, Evgeny"]
[Black "Sychev, Klementy"]
[WhiteFideId "2804344"]
[BlackFideId "4114060"]
[WhiteElo "2504"]
[BlackElo "2583"]
[Result "0-1"]
[Round "10"]
[TimeControl "180+2"]
[Date "2023.05.16"]
[WhiteClock "0:00:16"]
[BlackClock "0:00:04"]

1. e4 {[%clk 0:03:00]}  e5 {[%clk 0:02:59]} 2. Nf3 {[%clk 0:03:00]}  Nc6 {[%clk 0:03:00]} 3. Bb5 {[%clk 0:03:00]}  a6 {[%clk 0:03:00]} 4. Ba4 {[%clk 0:03:00]}  f5 {[%clk 0:03:00]} 5. d3 {[%clk 0:02:54]}  fxe4 {[%clk 0:03:01]} 6. dxe4 {[%clk 0:02:55]}  Nf6 {[%clk 0:03:01]} 7. Nbd2 {[%clk 0:02:48]}  Bc5 {[%clk 0:02:46]} 8. Bb3 {[%clk 0:02:40]}  d6 {[%clk 0:02:42]} 9. h3 {[%clk 0:02:39]}  Na5 {[%clk 0:02:40]} 10. Qe2 {[%clk 0:02:38]}  Nxb3 {[%clk 0:02:40]} 11. Nxb3 {[%clk 0:02:37]}  Ba7 {[%clk 0:02:33]} 12. Be3 {[%clk 0:02:36]}  O-O {[%clk 0:02:26]} 13. Bxa7 {[%clk 0:02:35]}  Rxa7 {[%clk 0:02:26]} 14. O-O-O {[%clk 0:02:35]}  Qe7 {[%clk 0:02:24]} 15. Ne1 {[%clk 0:02:22]}  a5 {[%clk 0:02:20]} 16. a3 {[%clk 0:02:22]}  Be6 {[%clk 0:02:13]} 17. Nd2 {[%clk 0:02:17]}  Rb8 {[%clk 0:02:03]} 18. Nd3 {[%clk 0:02:01]}  c5 {[%clk 0:01:36]} 19. f4 {[%clk 0:01:52]}  c4 {[%clk 0:01:33]} 20. Qe3 {[%clk 0:01:32]}  b5 {[%clk 0:00:51]} 21. fxe5 {[%clk 0:01:29]}  dxe5 {[%clk 0:00:51]} 22. Nxe5 {[%clk 0:01:26]}  Rc7 {[%clk 0:00:51]} 23. Ndf3 {[%clk 0:01:02]}  c3 {[%clk 0:00:40]} 24. Nd4 {[%clk 0:00:44]}  cxb2+ {[%clk 0:00:19]} 25. Kxb2 {[%clk 0:00:45]}  Qc5 {[%clk 0:00:11]} 26. Nxe6 {[%clk 0:00:24]}  Qxe3 {[%clk 0:00:08]} 27. Nxc7 {[%clk 0:00:23]}  b4 {[%clk 0:00:07]} 28. Rd3 {[%clk 0:00:22]}  bxa3+ {[%clk 0:00:05]} 29. Ka1 {[%clk 0:00:16]}  Qc5 {[%clk 0:00:04]} 0-1


[Site "https://www.chess.com"]